fUSD/lending_fUSD_20240114
["ID","MTS","AMOUNT","RATE_DAILY","PERIOD"]
[311570050,1705252255797,-4387.39,0.00030136,2]
[311570051,1705252255807,-500.0,0.00030136,2]
[311570052,1705252255817,-500.0,0.00030136,2]
[311570053,1705252255827,-603.75,0.00030136,2]
[311570054,1705252255836,-1632.29,0.00030136,2]
[311570055,1705252255846,-322.7223203,0.00030136,2]
[311570056,1705252255856,-509.18453715,0.00030136,2]
[311570057,1705252255868,-1885.84,0.00030136,2]
[311570058,1705252255877,-500.0,0.00030136,2]
[311570059,1705252255887,-500.0,0.00030136,2]
[311570060,1705252255896,-4784.66,0.00030136,2]
[311570061,1705252255905,-500.0,0.00030136,2]
[311570062,1705252255914,-832.48,0.00030136,2]
[311570063,1705252255924,-1240.53,0.00030136,2]
[311570064,1705252255934,-573.2,0.00030136,2]
[311570065,1705252255943,-500.0,0.00030136,2]
[311570066,1705252255952,-500.0,0.00030136,2]
[311570067,1705252255961,-500.0,0.00030136,2]
[311570068,1705252255971,-3159.92,0.00030136,2]
[311570069,1705252255981,-3081.64,0.00030136,2]
[311570070,1705252255992,-500.0,0.00030136,2]
[311570071,1705252256002,-675.96,0.00030136,2]
[311570072,1705252256011,-679.17,0.00030136,2]
[311570073,1705252256020,-500.0,0.00030136,2]
[311570074,1705252256030,-13784.05,0.00030136,2]
[311570075,1705252256041,-1529.04,0.00030136,2]
[311570076,1705252256050,-500.0,0.00030136,2]
[311570077,1705252256059,-500.0,0.00030136,2]
[311570078,1705252256071,-2924.52,0.00030136,2]
[311570079,1705252256079,-2597.16,0.00030136,2]
[311570080,1705252256089,-2132.34,0.00030136,2]
[311570081,1705252256098,-718.21,0.00030136,2]
[311570082,1705252256107,-1549.0,0.00030136,2]
[311570083,1705252256116,-1113.77,0.00030136,2]
[311570084,1705252256125,-1085.96,0.00030136,2]
[311570085,1705252256134,-1421.58,0.00030136,2]
[311570086,1705252256144,-500.0,0.00030136,2]
[311570087,1705252256153,-3238.3,0.00030136,2]
[311570088,1705252256163,-1678.41,0.00030136,2]
[311570089,1705252256173,-500.0,0.00030136,2]
[311570090,1705252256183,-500.0,0.00030136,2]
[311570091,1705252256192,-4880.1,0.00030136,2]
[311570092,1705252256201,-500.0,0.00030136,2]
[311570093,1705252256211,-500.0,0.00030136,2]
[311570094,1705252256220,-500.0,0.00030136,2]
[311570095,1705252256229,-500.0,0.00030136,2]
[311570096,1705252256241,-500.0,0.00030136,2]
[311570097,1705252256250,-500.0,0.00030136,2]
[311570098,1705252256259,-540.27,0.00030136,2]
[311570099,1705252256269,-1460.86,0.00030136,2]
[311570100,1705252256278,-21061.43,0.00030136,2]
[311570101,1705252256287,-500.0,0.00030136,2]
[311570102,1705252256298,-1487.5,0.00030136,2]
[311570103,1705252256308,-1673.61,0.00030136,2]
[311570104,1705252256317,-1765.87,0.00030136,2]
[311570105,1705252256326,-500.0,0.00030136,2]
[311570106,1705252256336,-500.0,0.00030136,2]
[311570107,1705252256346,-649.52,0.00030136,2]
[311570108,1705252256356,-500.0,0.00030136,2]
[311570109,1705252256367,-500.0,0.00030136,2]
[311570110,1705252256377,-500.0,0.00030136,2]
[311570111,1705252256387,-1920.25,0.00030136,2]
[311570112,1705252256396,-500.0,0.00030136,2]
[311570113,1705252256407,-1168.62,0.00030136,2]
[311570114,1705252256416,-5619.76,0.00030136,2]
[311570115,1705252256425,-500.0,0.00030136,2]
[311570116,1705252256435,-500.0,0.00030136,2]
[311570117,1705252256443,-505.55230888,0.00030136,2]
[311570118,1705252256453,-3856.99,0.00030136,2]
[311570119,1705252256462,-500.0,0.00030136,2]
[311570120,1705252256471,-500.0,0.00030136,2]
[311570121,1705252256479,-500.0,0.00030136,2]
[311570122,1705252256491,-500.0,0.00030136,2]
[311570123,1705252256499,-500.0,0.00030136,2]
[311570124,1705252256508,-500.0,0.00030136,2]
[311570125,1705252256517,-7583.02,0.00030136,2]
[311570126,1705252256531,-2010.65,0.00030136,2]
[311570127,1705252256540,-500.0,0.00030136,2]
[311570128,1705252256549,-3205.22,0.00030136,2]
[311570129,1705252256558,-153.84,0.00030137,2]
[311570130,1705252256567,-200.46728499,0.00030137,2]
[311570131,1705252256577,-155.0,0.00030137,2]
[311570132,1705252256585,-3000.0,0.0003022,2]
[311570133,1705252256597,-795.04,0.00030232,2]
[311570134,1705252256606,-1000.0,0.000303,2]
[311570135,1705252256616,-1000.0,0.000303,2]
[311570136,1705252256625,-1295.71667291,0.0003031,2]
[311570137,1705252256634,-1030.29696616,0.0003031,2]
[311570138,1705252256643,-166.22,0.00030349,2]
[311570139,1705252256653,-3000.0,0.0003038,2]
[311570140,1705252256662,-1904.69435412,0.00030384,2]
[311570141,1705252256671,-31406.87050793,0.00030407,2]
[311570142,1705252256681,-300.0,0.00030409,2]
[311570143,1705252256690,-784.69,0.0003041,2]
[311570144,1705252256700,-500.0,0.0003041,2]
[311570145,1705252256709,-500.0,0.0003041,2]
[311570146,1705252256719,-500.0,0.0003041,2]
[311570147,1705252256733,-500.0,0.0003041,2]
[311570148,1705252256743,-500.0,0.0003041,2]
[311570149,1705252256752,-1131.44,0.0003041,2]
[311570150,1705252256762,-1240.44,0.0003041,2]
[311570151,1705252256773,-524.66,0.0003041,2]
[311570152,1705252256783,-500.0,0.0003041,2]
[311570153,1705252256794,-505.36582397,0.0003041,2]
[311570154,1705252256804,-494.88394724,0.0003041,2]
[311570155,1705252256813,-1232.05,0.0003041,2]
[311570156,1705252256823,-507.06810679,0.0003041,2]
[311570157,1705252256832,-500.0,0.0003041,2]
[311570158,1705252256841,-767.48,0.0003041,2]
[311570159,1705252256851,-1126.41,0.0003041,2]
[311570160,1705252256860,-500.0,0.0003041,2]
[311570161,1705252256869,-500.0,0.0003041,2]
[311570162,1705252256878,-927.58,0.0003041,2]
[311570163,1705252256888,-515.47380589,0.0003041,2]
[311570164,1705252256898,-500.0,0.0003041,2]
[311570165,1705252256907,-500.0,0.0003041,2]
[311570166,1705252256917,-1002.34,0.0003041,2]
[311570167,1705252256926,-500.0,0.0003041,2]
[311570168,1705252256935,-500.0,0.0003041,2]
[311570169,1705252256945,-500.0,0.0003041,2]
[311570170,1705252256954,-500.0,0.0003041,2]
[311570171,1705252256963,-576.02,0.0003041,2]
[311570172,1705252256972,-1451.92,0.0003041,2]
[311570173,1705252256981,-848.75,0.0003041,2]
[311570174,1705252256990,-500.0,0.0003041,2]
[311570175,1705252256999,-1177.6,0.0003041,2]
[311570176,1705252257008,-1755.06,0.0003041,2]
[311570177,1705252257018,-500.0,0.0003041,2]
[311570178,1705252257027,-1716.01,0.0003041,2]
[311570179,1705252257036,-1136.11,0.0003041,2]
[311570180,1705252257045,-500.0,0.0003041,2]
[311570181,1705252257055,-500.0,0.0003041,2]
[311570182,1705252257064,-500.0,0.0003041,2]
[311570183,1705252257073,-647.22,0.0003041,2]
[311570184,1705252257082,-500.0,0.0003041,2]
[311570185,1705252257091,-1382.37,0.0003041,2]
[311570186,1705252257100,-500.0,0.0003041,2]
[311570187,1705252257109,-500.0,0.0003041,2]
[311570188,1705252257118,-529.29078803,0.0003041,9]
[311570189,1705252257128,-836.86,0.0003041,2]
[311570190,1705252257137,-500.0,0.0003041,2]
[311570191,1705252257146,-865.23,0.0003041,2]
[311570192,1705252257155,-500.0,0.0003041,2]
[311570193,1705252257165,-500.0,0.0003041,2]
[311570194,1705252257175,-500.0,0.0003041,2]
[311570195,1705252257185,-500.0,0.0003041,2]
[311570196,1705252257194,-500.0,0.0003041,2]
[311570197,1705252257204,-500.0,0.0003041,2]
[311570198,1705252257214,-510.53659995,0.0003041,2]
[311570199,1705252257223,-500.0,0.0003041,2]
[311570200,1705252257234,-500.0,0.0003041,2]
[311570201,1705252257243,-863.21,0.0003041,2]
[311570202,1705252257253,-1116.11,0.0003041,2]
[311570203,1705252257262,-500.0,0.0003041,2]
[311570204,1705252257271,-1335.88,0.0003041,2]
[311570205,1705252257281,-500.0,0.0003041,2]
[311570206,1705252257290,-500.0,0.0003041,2]
[311570207,1705252257299,-1690.6,0.0003041,2]
[311570208,1705252257309,-1241.32,0.0003041,2]
[311570209,1705252257318,-1048.27,0.0003041,2]
[311570210,1705252257327,-1127.62,0.0003041,2]
[311570211,1705252257336,-2021.1,0.0003041,2]
[311570212,1705252257346,-500.0,0.0003041,2]
[311570213,1705252257356,-666.2,0.0003041,2]
[311570214,1705252257365,-835.47,0.0003041,2]
[311570215,1705252257374,-500.0,0.0003041,2]
[311570216,1705252257384,-500.0,0.0003041,2]
[311570217,1705252257393,-500.0,0.0003041,2]
[311570218,1705252257402,-500.0,0.0003041,2]
[311570219,1705252257412,-500.0,0.0003041,2]
[311570220,1705252257422,-720.99,0.0003041,2]
[311570221,1705252257431,-1153.09,0.0003041,2]
[311570222,1705252257441,-804.23,0.0003041,2]
[311570223,1705252257450,-500.0,0.0003041,2]
[311570224,1705252257460,-1037.19,0.0003041,2]
[311570225,1705252257469,-1900.62,0.0003041,2]
[311570226,1705252257478,-1078.01,0.0003041,2]
[311570227,1705252257488,-500.0,0.0003041,2]
[311570228,1705252257496,-824.07,0.0003041,2]
[311570229,1705252257506,-2002.51,0.0003041,2]
[311570230,1705252257515,-678.83,0.0003041,2]
[311570231,1705252257524,-506.10354333,0.0003041,2]
[311570232,1705252257534,-959.7,0.0003041,2]
[311570233,1705252257543,-500.0,0.0003041,2]
[311570234,1705252257552,-500.0,0.0003041,2]
[311570235,1705252257562,-500.0,0.0003041,2]
[311570236,1705252257572,-500.0,0.0003041,2]
[311570237,1705252257581,-650.03,0.0003041,2]
[311570238,1705252257590,-500.0,0.0003041,2]
[311570239,1705252257600,-500.0,0.0003041,2]
[311570240,1705252257609,-500.0,0.0003041,2]
[311570241,1705252257619,-239.77800557,0.0003041,2]
[311570242,1705252257628,-1629.93,0.0003041,2]
[311570243,1705252257637,-1040.72,0.0003041,2]
[311570244,1705252257647,-1885.14,0.0003041,2]
[311570245,1705252257656,-2041.9,0.0003041,2]
[311570246,1705252257665,-500.0,0.0003041,2]
[311570247,1705252257674,-500.0,0.0003041,2]
[311570248,1705252257685,-500.0,0.0003041,2]
[311570249,1705252257694,-500.0,0.0003041,2]
[311570250,1705252257703,-500.0,0.0003041,2]
[311570251,1705252257713,-500.0,0.0003041,2]
[311570252,1705252257722,-500.0,0.0003041,2]
[311570253,1705252257732,-500.0,0.0003041,2]
[311570254,1705252257745,-1619.28,0.0003041,2]
[311570255,1705252257755,-557.9260821,0.0003041,2]
[311570256,1705252257764,-500.0,0.0003041,2]
[311570257,1705252257780,-500.0,0.0003041,2]
[311570258,1705252257791,-820.3,0.0003041,2]
[311570259,1705252257806,-2023.36,0.0003041,2]
[311570260,1705252257817,-1307.54,0.0003041,2]
[311570261,1705252257826,-662.33,0.0003041,2]
[311570262,1705252257835,-500.0,0.0003041,2]
[311570263,1705252257845,-500.0,0.0003041,2]
[311570264,1705252257854,-500.0,0.0003041,2]
[311570265,1705252257864,-500.0,0.0003041,2]
[311570266,1705252257874,-500.0,0.0003041,2]
[311570267,1705252257884,-500.0,0.0003041,2]
[311570268,1705252257893,-500.0,0.0003041,2]
[311570269,1705252257904,-1167.96,0.0003041,2]
[311570270,1705252257913,-1114.79,0.0003041,2]
[311570271,1705252257922,-500.0,0.0003041,2]
[311570272,1705252257931,-795.11,0.0003041,2]
[311570273,1705252257942,-500.0,0.0003041,2]
[311570274,1705252257950,-500.0,0.0003041,2]
[311570275,1705252257959,-500.0,0.0003041,2]
[311570276,1705252257969,-500.0,0.0003041,2]
[311570277,1705252257978,-500.0,0.0003041,2]
[311570278,1705252257988,-500.0,0.0003041,2]
[311570279,1705252257999,-536.08883914,0.0003041,2]
[311570280,1705252258009,-500.0,0.0003041,2]
[311570281,1705252258018,-500.0,0.0003041,2]
[311570282,1705252258027,-508.28,0.0003041,2]
[311570283,1705252258037,-500.0,0.0003041,2]
[311570284,1705252258046,-500.0,0.0003041,2]
[311570285,1705252258056,-484.4033004,0.0003041,2]
[311570286,1705252258066,-500.0,0.0003041,2]
[311570287,1705252258075,-500.0,0.0003041,2]
[311570288,1705252258085,-850.9,0.0003041,2]
[311570289,1705252258095,-823.12,0.0003041,2]
[311570290,1705252258104,-2060.81,0.0003041,2]
[311570291,1705252258115,-500.0,0.0003041,2]
[311570292,1705252258127,-1110.75,0.0003041,2]
[311570293,1705252258137,-500.0,0.0003041,2]
[311570294,1705252258146,-709.7,0.0003041,2]
[311570295,1705252258156,-500.0,0.0003041,2]
[311570296,1705252258165,-500.0,0.0003041,2]
[311570297,1705252258175,-664.23,0.0003041,2]
[311570298,1705252258185,-733.79,0.0003041,2]
[311570299,1705252258195,-500.0,0.0003041,2]
[311570300,1705252258205,-499.54120154,0.0003041,2]
[311570301,1705252258214,-1003.99869918,0.0003041,2]
[311570302,1705252258224,-1023.27,0.0003041,2]
[311570303,1705252258234,-3195.49,0.0003041,2]
[311570304,1705252258244,-500.0,0.0003041,2]
[311570305,1705252258253,-500.0,0.0003041,2]
[311570306,1705252258263,-500.0,0.0003041,2]
[311570307,1705252258273,-500.0,0.0003041,2]
[311570308,1705252258283,-500.0,0.0003041,2]
[311570309,1705252258293,-1885.84,0.0003041,2]
[311570310,1705252258303,-500.0,0.0003041,2]
[311570311,1705252258313,-500.0,0.0003041,2]
[311570312,1705252258323,-500.0,0.0003041,2]
[311570313,1705252258333,-500.0,0.0003041,2]
[311570314,1705252258344,-757.2,0.0003041,2]
[311570315,1705252258353,-500.0,0.0003041,2]
[311570316,1705252258363,-500.0,0.0003041,2]
[311570317,1705252258373,-500.0,0.0003041,2]
[311570318,1705252258383,-500.0,0.0003041,2]
[311570319,1705252258393,-544.61488757,0.0003041,2]
[311570320,1705252258403,-500.0,0.0003041,2]
[311570321,1705252258413,-500.0,0.0003041,2]
[311570322,1705252258422,-500.0,0.0003041,2]
[311570323,1705252258432,-863.68,0.0003041,2]
[311570324,1705252258442,-500.0,0.0003041,2]
[311570325,1705252258452,-500.0,0.0003041,2]
[311570326,1705252258461,-500.0,0.0003041,2]
[311570327,1705252258471,-829.78,0.0003041,2]
[311570328,1705252258481,-500.0,0.0003041,2]
[311570329,1705252258493,-1020.24,0.0003041,2]
[311570330,1705252258514,-917.51,0.0003041,2]
[311570331,1705252258525,-500.0,0.0003041,2]
[311570332,1705252258535,-1281.11,0.0003041,2]
[311570333,1705252258545,-500.0,0.0003041,2]
[311570334,1705252258556,-600.41,0.0003041,2]
[311570335,1705252258566,-1227.04,0.0003041,2]
[311570336,1705252258577,-500.0,0.0003041,2]
[311570337,1705252258588,-500.0,0.0003041,2]
[311570338,1705252258598,-416.00277098,0.0003041,2]
[311570339,1705252258608,-560.42598242,0.0003041,2]
[311570340,1705252258618,-500.0,0.0003041,2]
[311570341,1705252258628,-1999.83,0.0003041,2]
[311570342,1705252258638,-500.0,0.0003041,2]
[311570343,1705252258647,-746.49,0.0003041,2]
[311570344,1705252258657,-1132.45,0.0003041,2]
[311570345,1705252258667,-500.0,0.0003041,2]
[311570346,1705252258678,-1460.45,0.0003041,2]
[311570347,1705252258688,-500.0,0.0003041,2]
[311570348,1705252258698,-500.0,0.0003041,2]
[311570349,1705252258708,-500.0,0.0003041,2]
[311570350,1705252258718,-1320.94,0.0003041,2]
[311570351,1705252258732,-722.68,0.0003041,2]
[311570352,1705252258742,-500.0,0.0003041,2]
[311570353,1705252258752,-1205.87,0.0003041,2]
[311570354,1705252258763,-500.0,0.0003041,2]
[311570355,1705252258773,-500.0,0.0003041,2]
[311570356,1705252258783,-1773.28,0.0003041,2]
[311570357,1705252258793,-500.0,0.0003041,2]
[311570358,1705252258804,-563.75,0.0003041,2]
[311570359,1705252258815,-500.0,0.0003041,2]
[311570360,1705252258826,-810.08,0.0003041,2]
[311570361,1705252258836,-500.0,0.0003041,2]
[311570362,1705252258846,-895.09,0.0003041,2]
[311570363,1705252258856,-1207.56,0.0003041,2]
[311570364,1705252258865,-500.0,0.0003041,2]
[311570365,1705252258875,-1058.04,0.0003041,2]
[311570366,1705252258885,-2542.75,0.0003041,2]
[311570367,1705252258896,-500.0,0.0003041,2]
[311570368,1705252258906,-500.0,0.0003041,2]
[311570369,1705252258917,-500.0,0.0003041,2]
[311570370,1705252258926,-1000.0,0.0003041,2]
[311570371,1705252258936,-842.4,0.0003041,2]
[311570372,1705252258946,-500.0,0.0003041,2]
[311570373,1705252258955,-500.0,0.0003041,2]
[311570374,1705252258965,-500.0,0.0003041,2]
[311570375,1705252258975,-500.0,0.0003041,2]
[311570376,1705252258985,-1525.23,0.0003041,2]
[311570377,1705252258995,-500.0,0.0003041,2]
[311570378,1705252259005,-500.0,0.0003041,2]
[311570379,1705252259020,-1991.27,0.0003041,2]
[311570380,1705252259031,-500.0,0.0003041,2]
[311570381,1705252259042,-504.09124412,0.0003041,2]
[311570382,1705252259052,-500.0,0.0003041,2]
[311570383,1705252259063,-726.91,0.0003041,2]
[311570384,1705252259073,-582.82469407,0.0003041,2]
[311570385,1705252259084,-500.0,0.0003041,2]
[311570386,1705252259094,-500.0,0.0003041,2]
[311570387,1705252259105,-500.0,0.0003041,2]
[311570388,1705252259115,-681.84,0.0003041,2]
[311570389,1705252259126,-1443.03,0.0003041,2]
[311570390,1705252259136,-500.0,0.0003041,2]
[311570391,1705252259147,-500.0,0.0003041,2]
[311570392,1705252259158,-1460.0,0.0003041,2]
[311570393,1705252259168,-500.0,0.0003041,2]
[311570394,1705252259179,-500.0,0.0003041,2]
[311570395,1705252259190,-174.95033432,0.0003041,2]
[311570396,1705252259201,-1061.14,0.0003041,2]
[311570397,1705252259212,-1092.47,0.0003041,2]
[311570398,1705252259222,-500.0,0.0003041,2]
[311570399,1705252259233,-1128.45,0.0003041,2]
[311570400,1705252259245,-506.77264842,0.0003041,2]
[311570401,1705252259256,-500.97208157,0.0003041,2]
[311570402,1705252259267,-500.0,0.0003041,2]
[311570403,1705252259277,-500.0,0.0003041,2]
[311570404,1705252259288,-930.07,0.0003041,2]
[311570405,1705252259298,-500.0,0.0003041,2]
[311570406,1705252259308,-500.0,0.0003041,2]
[311570407,1705252259319,-500.0,0.0003041,2]
[311570408,1705252259329,-575.58,0.0003041,2]
[311570409,1705252259339,-804.22,0.0003041,2]
[311570410,1705252259349,-792.09,0.0003041,2]
[311570411,1705252259360,-513.98129191,0.0003041,2]
[311570412,1705252259370,-1171.52,0.0003041,2]
[311570413,1705252259379,-500.0,0.0003041,2]
[311570414,1705252259390,-500.0,0.0003041,2]
[311570415,1705252259400,-560.99,0.0003041,2]
[311570416,1705252259410,-500.0,0.0003041,2]
[311570417,1705252259420,-500.0,0.0003041,2]
[311570418,1705252259431,-500.0,0.0003041,2]
[311570419,1705252259441,-1559.96,0.0003041,2]
[311570420,1705252259451,-500.0,0.0003041,2]
[311570421,1705252259462,-1868.49,0.0003041,2]
[311570422,1705252259472,-500.0,0.0003041,2]
[311570423,1705252259490,-706.1,0.0003041,2]
[311570424,1705252259505,-538.67,0.0003041,2]
[311570425,1705252259515,-500.0,0.0003041,2]
[311570426,1705252259526,-954.86,0.0003041,2]
[311570427,1705252259536,-500.0,0.0003041,2]
[311570428,1705252259546,-503.11373179,0.0003041,2]
[311570429,1705252259557,-918.75,0.0003041,2]
[311570430,1705252259567,-188.78085219,0.0003041,2]
[311570431,1705252259578,-2188.29,0.0003041,2]
[311570432,1705252259588,-500.0,0.0003041,2]
[311570433,1705252259598,-815.77,0.0003041,2]
[311570434,1705252259609,-500.0,0.0003041,2]
[311570435,1705252259619,-500.0,0.0003041,2]
[311570436,1705252259630,-502.67729878,0.0003041,2]
[311570437,1705252259641,-986.25,0.0003041,2]
[311570438,1705252259651,-500.0,0.0003041,2]
[311570439,1705252259661,-591.33,0.0003041,2]
[311570440,1705252259672,-1308.37,0.0003041,2]
[311570441,1705252259682,-913.77,0.0003041,2]
[311570442,1705252259692,-500.0,0.0003041,2]
[311570443,1705252259702,-500.0,0.0003041,2]
[311570444,1705252259712,-500.0,0.0003041,2]
[311570445,1705252259722,-500.0,0.0003041,2]
[311570446,1705252259733,-500.0,0.0003041,2]
[311570447,1705252259742,-500.0,0.0003041,2]
[311570448,1705252259752,-426.42669816,0.0003041,2]
[311570449,1705252259763,-500.0,0.0003041,2]
[311570450,1705252259773,-1262.51,0.0003041,2]
[311570451,1705252259784,-500.0,0.0003041,2]
[311570452,1705252259795,-500.0,0.0003041,2]
[311570453,1705252259805,-509.39574567,0.0003041,2]
[311570454,1705252259815,-500.0,0.0003041,2]
[311570455,1705252259829,-228.03780379,0.0003041,2]
[311570456,1705252259840,-500.0,0.0003041,2]
[311570457,1705252259850,-1000.0,0.0003041,2]
[311570458,1705252259860,-500.0,0.0003041,2]
[311570459,1705252259871,-1331.58,0.0003041,2]
[311570460,1705252259881,-1516.94,0.0003041,2]
[311570461,1705252259891,-562.07,0.0003041,2]
[311570462,1705252259902,-643.99,0.0003041,2]
[311570463,1705252259912,-629.6,0.0003041,2]
[311570464,1705252259923,-748.5,0.0003041,2]
[311570465,1705252259933,-809.43,0.0003041,2]
[311570466,1705252259943,-1331.6,0.0003041,2]
[311570467,1705252259953,-500.0,0.0003041,2]
[311570468,1705252259963,-1249.64,0.0003041,2]
[311570469,1705252259974,-500.0,0.0003041,2]
[311570470,1705252259985,-500.0,0.0003041,2]
[311570471,1705252259995,-500.0,0.0003041,2]
[311570472,1705252260005,-730.81,0.0003041,2]
[311570473,1705252260016,-1260.42,0.0003041,2]
[311570474,1705252260026,-500.0,0.0003041,2]
[311570475,1705252260035,-977.41,0.0003041,2]
[311570476,1705252260046,-500.0,0.0003041,2]
[311570477,1705252260056,-706.44,0.0003041,2]
[311570478,1705252260066,-704.42,0.0003041,2]
[311570479,1705252260076,-500.0,0.0003041,2]
[311570480,1705252260086,-500.0,0.0003041,2]
[311570481,1705252260096,-500.0,0.0003041,2]
[311570482,1705252260105,-1054.04,0.0003041,2]
[311570483,1705252260115,-500.0,0.0003041,2]
[311570484,1705252260125,-500.59443251,0.0003041,2]
[311570485,1705252260135,-500.0,0.0003041,2]
[311570486,1705252260145,-500.0,0.0003041,2]
[311570487,1705252260155,-500.0,0.0003041,2]
[311570488,1705252260165,-500.0,0.0003041,2]
[311570489,1705252260176,-1099.5,0.0003041,2]
[311570490,1705252260186,-500.0,0.0003041,2]
[311570491,1705252260196,-500.0,0.0003041,2]
[311570492,1705252260207,-500.0,0.0003041,2]
[311570493,1705252260217,-500.0,0.0003041,2]
[311570494,1705252260228,-500.0,0.0003041,2]
[311570495,1705252260240,-514.13,0.0003041,2]
[311570496,1705252260250,-743.27,0.0003041,2]
[311570497,1705252260261,-835.81,0.0003041,2]
[311570498,1705252260271,-854.02,0.0003041,2]
[311570499,1705252260282,-820.16,0.0003041,2]
[311570500,1705252260292,-500.7,0.0003041,2]
[311570501,1705252260302,-1035.25,0.0003041,2]
[311570502,1705252260313,-500.0,0.0003041,2]
[311570503,1705252260323,-2187.41,0.0003041,2]
[311570504,1705252260334,-500.0,0.0003041,2]
[311570505,1705252260347,-500.0,0.0003041,2]
[311570506,1705252260776,-206.97354043,0.0003041,2]
[311570507,1705252260786,-746.89,0.0003041,2]
[311570508,1705252260796,-500.0,0.0003041,2]
[311570509,1705252260805,-500.0,0.0003041,2]
[311570510,1705252260816,-1874.06,0.0003041,2]
[311570511,1705252260827,-500.0,0.0003041,2]
[311570512,1705252260836,-500.0,0.0003041,2]
[311570513,1705252260845,-500.0,0.0003041,2]
[311570514,1705252260855,-500.73817515,0.0003041,2]
[311570515,1705252260864,-500.0,0.0003041,2]
[311570516,1705252260874,-500.0,0.0003041,2]
[311570517,1705252260883,-1599.15,0.0003041,2]
[311570518,1705252260892,-500.0,0.0003041,2]
[311570519,1705252260902,-500.0,0.0003041,2]
[311570520,1705252260911,-2449.88,0.0003041,2]
[311570521,1705252260920,-500.0,0.0003041,2]
[311570522,1705252260929,-506.49255192,0.0003041,2]
[311570523,1705252260939,-816.92,0.0003041,2]
[311570524,1705252260948,-500.0,0.0003041,2]
[311570525,1705252260957,-500.0,0.0003041,2]
[311570526,1705252260967,-500.13731758,0.0003041,2]
[311570527,1705252260977,-607.62,0.0003041,2]
[311570528,1705252260987,-500.0,0.0003041,2]
[311570529,1705252260997,-500.0,0.0003041,2]
[311570530,1705252261006,-1717.02,0.0003041,2]
[311570531,1705252261015,-500.0,0.0003041,2]
[311570532,1705252261025,-500.0,0.0003041,2]
[311570533,1705252261034,-500.0,0.0003041,2]
[311570534,1705252261044,-500.0,0.0003041,2]
[311570535,1705252261053,-500.0,0.0003041,2]
[311570536,1705252261062,-500.28959427,0.0003041,2]
[311570537,1705252261071,-500.0,0.0003041,2]
[311570538,1705252261081,-585.51,0.0003041,2]
[311570539,1705252261090,-846.57,0.0003041,2]
[311570540,1705252261100,-1192.35,0.0003041,2]
[311570541,1705252261109,-500.0,0.0003041,2]
[311570542,1705252261119,-500.0,0.0003041,2]
[311570543,1705252261128,-556.01,0.0003041,2]
[311570544,1705252261137,-500.0,0.0003041,2]
[311570545,1705252261147,-311.49,0.0003041,2]
[311570546,1705252261157,-753.23,0.0003041,2]
[311570547,1705252261166,-1217.56,0.0003041,2]
[311570548,1705252261175,-564.68,0.0003041,2]
[311570549,1705252261185,-2611.38,0.0003041,2]